fUSD/lending_fUSD_20240929
["ID","MTS","AMOUNT","RATE_DAILY","PERIOD"]
[339455343,1727619114534,-624.69,0.00010999,2]
[339455344,1727619114553,-536.97,0.00010999,2]
[339455345,1727619114573,-540.1,0.00010999,2]
[339455346,1727619114591,-536.97,0.00010999,2]
[339455347,1727619114608,-540.1,0.00010999,2]
[339455348,1727619114625,-540.1,0.00010999,2]
[339455349,1727619114642,-536.97,0.00010999,2]
[339455350,1727619114657,-540.1,0.00010999,2]
[339455351,1727619114672,-536.97,0.00010999,2]
[339455352,1727619114688,-540.1,0.00010999,2]
[339455353,1727619114703,-536.97,0.00010999,2]
[339455354,1727619114719,-536.97,0.00010999,2]
[339455355,1727619114735,-227456.94079436,0.00011,2]
[339455356,1727619116489,-1100.0,0.000107,3]
[339455357,1727619116499,-500.0,0.00010986,2]
[339455358,1727619116510,-500.0,0.00010986,2]
[339455359,1727619116519,-510.47,0.00010986,2]
[339455360,1727619116530,-500.0,0.00010996,2]
[339455361,1727619116540,-500.0,0.00010997,2]
[339455362,1727619116550,-500.0,0.00010997,2]
[339455363,1727619116559,-586.03,0.00010997,2]
[339455364,1727619116568,-500.0,0.00010997,2]
[339455365,1727619116577,-500.0,0.00010997,2]
[339455366,1727619116587,-500.0,0.00010997,2]
[339455367,1727619116596,-500.0,0.00010997,2]
[339455368,1727619116605,-500.0,0.00010998,2]
[339455369,1727619116616,-500.0,0.00010998,2]
[339455370,1727619116627,-500.0,0.00010998,2]
[339455371,1727619116636,-537.12,0.00010998,2]
[339455372,1727619116646,-500.0,0.00010998,2]
[339455373,1727619116656,-500.0,0.00010998,2]
[339455374,1727619116666,-226.38502439,0.00010998,2]
[339455375,1727619116679,-273.61497561,0.00010998,2]
[339455376,1727619116687,-500.0,0.00010998,2]
[339455377,1727619116696,-500.0,0.00010998,2]
[339455378,1727619116706,-500.0,0.00010998,2]
[339455379,1727619116715,-500.0,0.00010998,2]
[339455380,1727619116724,-536.97,0.00010999,2]
[339455381,1727619116733,-540.32457238,0.00010999,2]
[339455382,1727619116743,-536.97,0.00010999,2]
[339455383,1727619116752,-536.97,0.00010999,2]
[339455384,1727619116762,-518.58218173,0.00010999,2]
[339455385,1727619116774,-18.38781827,0.00010999,2]
[339455386,1727619116783,-298.1971749,0.00010999,2]
[339455387,1727619116830,-500.0,0.00010997,2]
[339455388,1727619116841,-500.0,0.00010997,2]
[339455389,1727619116852,-500.0,0.00010997,2]
[339455390,1727619116862,-500.0,0.00010997,2]
[339455391,1727619116873,-238.7728251,0.00010999,2]
[339455392,1727619116883,-536.97,0.00010999,2]
[339455393,1727619116893,-500.0,0.00010999,2]
[339455394,1727619116902,-537.1,0.00010999,2]
[339455395,1727619116913,-500.0,0.00010999,2]
[339455396,1727619116924,-409.82,0.00010999,2]
[339455397,1727619116934,-20554.56436342,0.00011,2]
[339455398,1727619116948,-402.5699328,0.00011,2]
[339455399,1727619121334,5968.1816,9.842e-05,2]
[339455400,1727619123148,155.94,9.589e-05,2]
[339455403,1727619295154,27778.08,9e-05,2]
[339455406,1727619401318,150.01,8.012e-05,2]
[339455407,1727619422992,150.5,0.0001333,120]
[339455408,1727619423476,150.5,0.0001332,120]
[339455409,1727619423951,238.98,0.0001331,120]
[339455410,1727619443056,555.75,8.219e-05,2]
[339455411,1727619609633,196.49,9.882e-05,2]
[339455412,1727619613367,545.09,9.882e-05,2]
[339455413,1727619642085,157.53,9.589e-05,2]
[339455414,1727619679069,3108.901884,9.887e-05,2]
[339455415,1727619738856,3540.56,9.844e-05,2]
[339455416,1727619945865,280.59,9.851e-05,2]
[339455417,1727619950254,165.81,9.851e-05,2]
[339455419,1727620029799,691.62,9.887e-05,2]
[339455420,1727620101674,287.74731808,0.00021,60]
[339455421,1727620134959,250.0,9.898e-05,2]
[339455428,1727620211877,554.91,8.219e-05,2]
[339455444,1727620232359,-980.23063339,9.921e-05,2]
[339455447,1727620232370,-19.76936661,9.921e-05,2]
[339455449,1727620232380,-260.21,9.987e-05,2]
[339455451,1727620232390,-3089.33270766,9.987e-05,2]
[339455453,1727620232400,-1050.0,0.0001,2]
[339455455,1727620232409,-1179.71207449,0.0001,2]
[339455457,1727620232420,-3576.97871244,0.0001,2]
[339455459,1727620232431,-4477.92071747,0.0001,2]
[339455461,1727620232442,-36545.52810731,0.0001,2]
[339455463,1727620232452,-167.44,0.00010027,2]
[339455465,1727620232463,-200.9,0.00010201,2]
[339455467,1727620232472,-370.13,0.00010207,2]
[339455469,1727620232481,-150.0,0.00010207,2]
[339455470,1727620232490,-361.38,0.00010207,2]
[339455471,1727620232500,-300.0,0.00010299,2]
[339455472,1727620232509,-150.0,0.00010299,2]
[339455473,1727620232518,-150.0,0.000103,2]
[339455474,1727620232528,-150.0,0.000103,2]
[339455475,1727620232537,-322.36,0.000103,2]
[339455476,1727620232547,-435.56,0.000103,2]
[339455477,1727620232557,-306.03,0.000103,2]
[339455478,1727620232567,-52023.82,0.000103,2]
[339455479,1727620232577,-920.46,0.000103,2]
[339455480,1727620232587,-422.95,0.000103,2]
[339455481,1727620232597,-554.91,0.00010472,2]
[339455482,1727620232606,-150.99,0.00010472,2]
[339455483,1727620232615,-369.2051,0.00010785,2]
[339455484,1727620232624,-812.9946,0.00010785,2]
[339455485,1727620232634,-1474.6495,0.00010786,2]
[339455486,1727620232644,-618.6766,0.00010786,2]
[339455487,1727620232653,-1000.0,0.000108,2]
[339455488,1727620232662,-433.2501,0.00010885,2]
[339455489,1727620232672,-83131.7565,0.00010885,2]
[339455490,1727620232681,-5707.528,0.00010886,2]
[339455491,1727620232691,-4010.1616,0.00010886,2]
[339455492,1727620232700,-7041.0331,0.00010886,2]
[339455493,1727620232710,-1682.2527,0.00010886,2]
[339455494,1727620232719,-948.9924,0.00010886,2]
[339455495,1727620232728,-1240.7074,0.00010886,2]
[339455496,1727620232738,-413.078,0.00010896,2]
[339455497,1727620232748,-209.53463472,0.00010896,2]
[339455498,1727620232757,-209.53463472,0.00010897,2]
[339455499,1727620232766,-209.53463472,0.00010897,2]
[339455500,1727620232775,-289.63567654,0.00010898,2]
[339455501,1727620232784,-2113.7809,0.00010899,2]
[339455502,1727620232794,-307.58054621,0.00010899,2]
[339455503,1727620232803,-289.63567653,0.00010899,2]
[339455504,1727620232813,-5085.07676874,0.00010899,2]
[339455505,1727620232823,-5085.07676874,0.00010899,2]
[339455506,1727620232832,-301.35,0.000109,2]
[339455507,1727620232843,-150.0,0.000109,2]
[339455508,1727620232853,-307.58054621,0.000109,2]
[339455509,1727620232862,-1974.79715508,0.000109,2]
[339455510,1727620232871,-289.63567653,0.000109,2]
[339455511,1727620232881,-605.45,0.00010958,2]
[339455512,1727620232890,-1100.29,0.00010958,2]
[339455513,1727620232900,-500.0,0.00010958,2]
[339455514,1727620232909,-567.38,0.00010958,2]
[339455515,1727620232920,-1412.07,0.00010958,2]
[339455516,1727620232929,-500.0,0.00010958,2]
[339455517,1727620232938,-663.81,0.00010958,2]
[339455518,1727620232948,-200.0,0.00010959,2]
[339455519,1727620232957,-200.0,0.00010959,2]
[339455520,1727620232966,-200.0,0.00010959,2]
[339455521,1727620232976,-200.0,0.00010959,2]
[339455522,1727620232985,-200.0,0.00010959,2]
[339455523,1727620232996,-178.15,0.00010959,2]
[339455524,1727620233005,-250.0,0.00010959,2]
[339455525,1727620233015,-150.64,0.00010959,2]
[339455526,1727620233024,-500.0,0.00010973,2]
[339455527,1727620233033,-787.32,0.00010982,2]
[339455528,1727620233043,-994.16,0.00010982,2]
[339455529,1727620233053,-500.0,0.00010982,2]
[339455530,1727620233062,-685.72,0.00010982,2]
[339455531,1727620233073,-500.0,0.00010982,2]
[339455532,1727620233082,-1959.98,0.00010983,2]
[339455533,1727620233092,-2163.47,0.00010983,2]
[339455534,1727620233101,-962.17,0.00010983,2]
[339455535,1727620233110,-500.0,0.00010983,2]
[339455536,1727620233119,-502.1264848,0.00010983,2]
[339455537,1727620233130,-500.0,0.00010983,2]
[339455538,1727620233139,-805.92,0.00010983,2]
[339455539,1727620233149,-1072.45,0.00010983,2]
[339455540,1727620233159,-500.0,0.00010983,2]
[339455541,1727620233169,-1521.51,0.00010983,2]
[339455542,1727620233179,-500.0,0.00010983,2]
[339455543,1727620233188,-1576.9,0.00010983,2]
[339455544,1727620233198,-2542.99,0.00010983,2]
[339455545,1727620233207,-204.77644235,0.00010983,2]
[339455546,1727620233217,-165.28761784,0.00010983,2]
[339455547,1727620233227,-500.0,0.00010983,2]
[339455548,1727620233237,-500.0,0.00010983,2]
[339455549,1727620233246,-1367.31,0.00010983,2]
[339455550,1727620233256,-500.0,0.00010983,2]
[339455551,1727620233266,-500.0,0.00010983,2]
[339455552,1727620233276,-1144.56,0.00010983,2]
[339455553,1727620233285,-500.0,0.00010983,2]
[339455554,1727620233296,-1347.97,0.00010983,2]
[339455555,1727620233305,-500.0,0.00010983,2]
[339455556,1727620233315,-500.0,0.00010983,2]
[339455557,1727620233324,-530.58,0.00010983,2]
[339455558,1727620233333,-500.0,0.00010983,2]
[339455559,1727620233345,-721.89,0.00010983,2]
[339455560,1727620233355,-500.0,0.00010983,2]
[339455561,1727620233365,-1162.263874,0.00010983,2]
[339455562,1727620233374,-1698.162821,0.00010983,2]
[339455563,1727620233384,-5110.510616,0.00010983,2]
[339455564,1727620233394,-500.0,0.00010983,2]
[339455565,1727620233403,-500.0,0.00010983,2]
[339455566,1727620233413,-950.45,0.00010983,2]
[339455567,1727620233423,-500.0,0.00010984,2]
[339455568,1727620233432,-503.34815401,0.00010984,2]
[339455569,1727620233441,-500.0,0.00010984,2]
[339455570,1727620233451,-500.0,0.00010984,2]
[339455571,1727620233462,-500.0,0.00010984,2]
[339455572,1727620233472,-1002.68,0.00010984,2]
[339455573,1727620233482,-584.66,0.00010984,2]
[339455574,1727620233492,-1473.38,0.00010984,2]
[339455575,1727620233502,-1205.96,0.00010984,2]
[339455576,1727620233512,-1649.31,0.00010984,2]
[339455577,1727620233522,-500.0,0.00010984,2]
[339455578,1727620233532,-500.0,0.00010984,2]
[339455579,1727620233541,-500.0,0.00010984,2]
[339455580,1727620233551,-500.0,0.00010984,2]
[339455581,1727620233560,-500.0,0.00010984,2]
[339455582,1727620233570,-500.0,0.00010984,2]
[339455583,1727620233579,-500.0,0.00010984,2]
[339455584,1727620233589,-889.44,0.00010984,2]
[339455585,1727620233599,-1036.79,0.00010984,2]
[339455586,1727620233609,-2787.62,0.00010984,2]
[339455587,1727620233619,-1528.72,0.00010984,2]
[339455588,1727620233628,-58743.270909,0.00010984,2]
[339455589,1727620233638,-665.25,0.00010984,2]
[339455590,1727620233648,-501.01908066,0.00010984,2]
[339455591,1727620233901,-874.65,0.00010984,2]
[339455592,1727620233912,-500.0,0.00010984,2]
[339455593,1727620233923,-500.0,0.00010984,2]
[339455594,1727620233933,-500.0,0.00010984,2]
[339455595,1727620233942,-502.16234457,0.00010984,2]
[339455596,1727620233952,-397.59517258,0.00010984,2]
[339455597,1727620233962,-500.0,0.00010984,2]
[339455598,1727620233971,-433.05859171,0.00010984,2]
[339455599,1727620233981,-500.0,0.00010984,2]
[339455600,1727620233991,-500.0,0.00010984,2]
[339455601,1727620234000,-500.0,0.00010984,2]
[339455602,1727620234010,-500.0,0.00010984,2]
[339455603,1727620234020,-722.8,0.00010984,2]
[339455604,1727620234029,-500.0,0.00010984,2]
[339455605,1727620234039,-1384.8,0.00010984,2]
[339455606,1727620234048,-531.45,0.00010984,2]
[339455607,1727620234057,-512.47656731,0.00010984,2]
[339455608,1727620234066,-500.0,0.00010984,2]
[339455609,1727620234075,-500.0,0.00010984,2]
[339455610,1727620234085,-500.0,0.00010984,2]
[339455611,1727620234094,-500.0,0.00010984,2]
[339455612,1727620234103,-2774.67,0.00010984,2]
[339455613,1727620234113,-1914.94,0.00010984,2]
[339455614,1727620234122,-500.19,0.00010984,2]
[339455615,1727620234131,-995.58,0.00010984,2]
[339455616,1727620234140,-500.0,0.00010984,2]
[339455617,1727620234149,-1288.81,0.00010984,2]
[339455618,1727620234160,-619.83,0.00010984,2]
[339455619,1727620234169,-500.0,0.00010984,2]
[339455620,1727620234179,-500.0,0.00010984,2]
[339455621,1727620234188,-911.87,0.00010984,2]
[339455622,1727620234197,-522.35,0.00010984,2]
[339455623,1727620234206,-500.0,0.00010984,2]
[339455624,1727620234216,-1353.11,0.00010984,2]
[339455625,1727620234226,-1234.06,0.00010984,2]
[339455626,1727620234235,-501.84643221,0.00010984,2]
[339455627,1727620234244,-500.0,0.00010984,2]
[339455628,1727620234253,-917.44,0.00010984,2]
[339455629,1727620234262,-702.11,0.00010984,2]
[339455630,1727620234271,-500.0,0.00010984,2]
[339455631,1727620234280,-500.0,0.00010984,2]
[339455632,1727620234290,-620.08,0.00010984,2]
[339455633,1727620234299,-1250.1,0.00010984,2]
[339455634,1727620234308,-500.0,0.00010984,2]
[339455635,1727620234317,-1153.91,0.00010984,2]
[339455636,1727620234327,-2119.17,0.00010984,2]
[339455637,1727620234336,-546.65886988,0.00010984,2]
[339455638,1727620234345,-605.45,0.00010984,2]
[339455639,1727620234354,-500.0,0.00010984,2]
[339455640,1727620234363,-371.55365193,0.00010984,2]
[339455641,1727620234372,-720.52,0.00010984,2]
[339455642,1727620234381,-628.25,0.00010984,2]
[339455643,1727620234391,-500.0,0.00010984,2]
[339455644,1727620234400,-1100.29,0.00010984,2]
[339455645,1727620234409,-573.54,0.00010984,2]
[339455646,1727620234419,-500.0,0.00010984,2]
[339455647,1727620234428,-500.0,0.00010984,2]
[339455648,1727620234437,-500.0,0.00010984,2]
[339455649,1727620234447,-500.0,0.00010984,2]
[339455650,1727620234457,-2026.62,0.00010984,2]
[339455651,1727620234467,-506.50066832,0.00010984,2]
[339455652,1727620234477,-500.0,0.00010984,2]
[339455653,1727620234487,-500.0,0.00010984,2]
[339455654,1727620234497,-500.0,0.00010984,2]
[339455655,1727620234506,-666.45,0.00010984,2]
[339455656,1727620234516,-500.0,0.00010984,2]
[339455657,1727620234525,-567.38,0.00010984,2]
[339455658,1727620234535,-500.0,0.00010984,2]
[339455659,1727620234545,-500.0,0.00010984,2]
[339455660,1727620234554,-500.0,0.00010984,2]
[339455661,1727620234564,-560.35,0.00010984,2]
[339455662,1727620234573,-1412.07,0.00010984,2]
[339455663,1727620234583,-500.0,0.00010984,2]
[339455664,1727620234593,-1096.64,0.00010984,2]
[339455665,1727620234602,-500.0,0.00010984,2]
[339455666,1727620234612,-500.0,0.00010984,2]
[339455667,1727620234621,-663.81,0.00010984,2]
[339455668,1727620234630,-500.0,0.00010984,2]
[339455669,1727620234639,-511.05,0.00010984,2]
[339455670,1727620234649,-500.0,0.00010984,2]
[339455671,1727620234659,-500.0,0.00010984,2]
[339455672,1727620234668,-501.68705289,0.00010985,2]
[339455673,1727620234678,-755.86,0.00010985,2]
[339455674,1727620234687,-467.76037846,0.00010985,2]
[339455675,1727620234696,-502.55310569,0.00010985,2]
[339455676,1727620234706,-506.59252764,0.00010985,2]
[339455677,1727620234716,-505.8275424,0.00010985,2]
[339455678,1727620234725,-500.0,0.00010985,2]
[339455679,1727620234735,-839.67,0.00010985,2]
[339455680,1727620234744,-502.00166629,0.00010985,2]
[339455681,1727620234753,-505.07684805,0.00010985,2]
[339455682,1727620234764,-488.1,0.00010985,2]
[339455683,1727620234774,-503.16176268,0.00010985,2]
[339455684,1727620234785,-500.0,0.00010985,2]
[339455685,1727620234794,-500.0,0.00010985,2]
[339455686,1727620234803,-503.74778887,0.00010985,2]
[339455687,1727620234812,-506.13886013,0.00010985,2]
[339455688,1727620234822,-500.0,0.00010985,2]
[339455689,1727620234831,-500.0,0.00010985,2]
[339455690,1727620234845,-502.41735463,0.00010985,2]
[339455691,1727620234854,-505.7474653,0.00010985,2]
[339455692,1727620234864,-503.4659579,0.00010985,2]
[339455693,1727620234873,-500.0,0.00010985,2]
[339455694,1727620234883,-500.0,0.00010985,2]
[339455695,1727620234892,-500.0,0.00010985,2]
[339455696,1727620234902,-500.0,0.00010985,2]
[339455697,1727620234912,-500.0,0.00010985,2]
[339455698,1727620234925,-500.0,0.00010985,2]
[339455699,1727620234935,-500.0,0.00010985,2]
[339455700,1727620234946,-500.0,0.00010985,2]
[339455701,1727620234955,-500.0,0.00010985,2]
[339455702,1727620234965,-923.05,0.00010985,2]
[339455703,1727620234974,-500.0,0.00010985,2]
[339455704,1727620234984,-191.83236643,0.00010985,2]
[339455705,1727620234993,-502.17990004,0.00010985,2]
[339455706,1727620235002,-1457.57,0.00010985,2]
[339455707,1727620235012,-321.4262058,0.00010985,2]
[339455708,1727620235021,-506.19440538,0.00010985,2]
[339455709,1727620235030,-1361.61,0.00010985,2]
[339455710,1727620235040,-500.0,0.00010985,2]
[339455711,1727620235050,-500.0,0.00010985,2]
[339455712,1727620235059,-500.0,0.00010985,2]
[339455713,1727620235069,-170.86466962,0.00010985,2]
[339455714,1727620235078,-500.0,0.00010985,2]
[339455715,1727620235088,-500.0,0.00010985,2]
[339455716,1727620235097,-500.0,0.00010985,2]
[339455717,1727620235106,-500.0,0.00010985,2]
[339455718,1727620235115,-504.33430353,0.00010985,2]
[339455719,1727620235124,-501.64116907,0.00010985,2]
[339455720,1727620235133,-502.13357971,0.00010985,2]
[339455721,1727620235143,-3193.23,0.00010985,2]
[339455722,1727620235151,-506.33694241,0.00010985,2]
[339455723,1727620235160,-504.90865347,0.00010985,2]
[339455724,1727620235170,-500.0,0.00010985,2]
[339455725,1727620235179,-500.0,0.00010985,2]
[339455726,1727620235190,-500.0,0.00010985,2]
[339455727,1727620235199,-500.0,0.00010985,2]
[339455728,1727620235210,-632.33468064,0.00010985,2]
[339455729,1727620235220,-500.0,0.00010985,2]
[339455730,1727620235230,-500.0,0.00010985,2]
[339455731,1727620235239,-500.0,0.00010985,2]
[339455732,1727620235249,-500.0,0.00010985,2]
[339455733,1727620235258,-500.0,0.00010985,2]
[339455734,1727620235267,-500.0,0.00010985,2]
[339455735,1727620235278,-1228.79,0.00010985,2]
[339455736,1727620235287,-584.99,0.00010985,2]
[339455737,1727620235297,-583.03254845,0.00010985,2]
[339455738,1727620235306,-500.0,0.00010985,2]
[339455739,1727620235315,-500.0,0.00010985,2]
[339455740,1727620235325,-500.0,0.00010985,2]
[339455741,1727620235335,-500.0,0.00010985,2]
[339455742,1727620235344,-500.0,0.00010985,2]
[339455743,1727620235353,-500.0,0.00010985,2]
[339455744,1727620235362,-500.0,0.00010985,2]
[339455745,1727620235371,-612.6,0.00010985,2]
[339455746,1727620235380,-500.0,0.00010985,2]
[339455747,1727620235389,-632.36,0.00010985,2]
[339455748,1727620235398,-500.0,0.00010985,2]
[339455749,1727620235407,-584.33,0.00010985,2]
[339455750,1727620235416,-500.0,0.00010985,2]
[339455751,1727620235426,-407.64584473,0.00010985,2]
[339455752,1727620235435,-500.0,0.00010985,2]
[339455753,1727620235444,-833.08,0.00010985,2]
[339455754,1727620235454,-1209.19,0.00010985,2]
[339455755,1727620235463,-538.21392291,0.00010985,2]
[339455756,1727620235473,-500.0,0.00010985,2]
[339455757,1727620235482,-718.94,0.00010985,2]
[339455758,1727620235492,-500.0,0.00010985,2]
[339455759,1727620235501,-500.0,0.00010985,2]
[339455760,1727620235511,-500.0,0.00010985,2]
[339455761,1727620235520,-500.0,0.00010985,2]
[339455762,1727620235530,-810.84,0.00010985,2]
[339455763,1727620235539,-705.34,0.00010985,2]
[339455764,1727620235548,-500.0,0.00010985,2]
[339455765,1727620235558,-500.0,0.00010985,2]
[339455766,1727620235567,-1031.37,0.00010985,2]
[339455767,1727620235576,-855.09,0.00010985,2]
[339455768,1727620235585,-598.33,0.00010985,2]
[339455769,1727620235595,-500.0,0.00010985,2]
[339455770,1727620235604,-500.0,0.00010985,2]
[339455771,1727620235613,-500.0,0.00010985,2]
[339455772,1727620235623,-500.0,0.00010985,2]
[339455773,1727620235633,-583.02,0.00010985,2]
[339455774,1727620235642,-978.72,0.00010985,2]
[339455775,1727620235651,-500.0,0.00010985,2]
[339455776,1727620235661,-500.0,0.00010985,2]
[339455777,1727620235671,-500.0,0.00010985,2]
[339455778,1727620235680,-557.11054714,0.00010985,2]
[339455779,1727620235689,-500.0,0.00010985,2]
[339455780,1727620235698,-500.0,0.00010985,2]
[339455781,1727620235708,-500.0,0.00010985,2]
[339455782,1727620235718,-500.0,0.00010985,2]
[339455783,1727620235727,-500.0,0.00010985,2]
[339455784,1727620235736,-500.0,0.00010985,2]
[339455785,1727620235745,-500.0,0.00010985,2]
[339455786,1727620235754,-500.0,0.00010985,2]
[339455787,1727620235764,-500.0,0.00010985,2]
[339455788,1727620235772,-1009.36,0.00010985,2]
[339455789,1727620235781,-500.0,0.00010985,2]
[339455790,1727620235790,-787.32,0.00010985,2]
[339455791,1727620235800,-500.0,0.00010985,2]
[339455792,1727620235811,-525.97,0.00010985,2]
[339455793,1727620235822,-500.0,0.00010985,2]
[339455794,1727620235832,-994.16,0.00010985,2]
[339455795,1727620235845,-546.64,0.00010985,2]
[339455796,1727620235857,-500.0,0.00010985,2]
[339455797,1727620235869,-685.72,0.00010985,2]
[339455798,1727620235880,-500.0,0.00010985,2]
[339455799,1727620235894,-554.82,0.00010985,2]
[339455800,1727620235905,-915.86,0.00010985,2]
[339455801,1727620235915,-151.83,0.00010985,2]
[339455802,1727620235924,-216.74872702,0.00010985,2]
[339455803,1727620235934,-500.0,0.00010986,2]
[339455804,1727620235944,-1261.83,0.00010986,2]
[339455805,1727620235954,-500.0,0.00010986,2]
[339455806,1727620235965,-500.0,0.00010986,2]
[339455807,1727620235975,-500.0,0.00010986,2]
[339455808,1727620235986,-500.0,0.00010986,2]
[339455809,1727620235995,-500.0,0.00010986,2]
[339455810,1727620236005,-500.0,0.00010986,2]
[339455811,1727620236014,-500.0,0.00010986,2]
[339455812,1727620236023,-500.0,0.00010986,2]
[339455813,1727620236032,-468.81561899,0.00010986,2]
[339455814,1727620236042,-500.0,0.00010986,2]
[339455815,1727620236051,-500.0,0.00010986,2]
[339455816,1727620236060,-283.91929437,0.00010986,2]
[339455817,1727620236069,-500.0,0.00010986,2]
[339455818,1727620236078,-500.0,0.00010986,2]
[339455819,1727620236087,-897.48,0.00010986,2]
[339455820,1727620236096,-500.0,0.00010986,2]
[339455821,1727620236107,-500.0,0.00010986,2]
[339455822,1727620236116,-500.0,0.00010986,2]
[339455823,1727620236125,-500.0,0.00010986,2]
[339455824,1727620236134,-500.0,0.00010986,2]
[339455825,1727620236143,-500.0,0.00010986,2]
[339455826,1727620236152,-500.0,0.00010986,2]
[339455827,1727620236161,-500.0,0.00010986,2]
[339455828,1727620236170,-500.0,0.00010986,2]
[339455829,1727620236179,-500.0,0.00010986,2]
[339455830,1727620236188,-500.0,0.00010986,2]
[339455831,1727620236198,-500.0,0.00010986,2]
[339455832,1727620236207,-500.0,0.00010986,2]
[339455833,1727620236216,-736.38,0.00010986,2]
[339455834,1727620236225,-500.0,0.00010986,2]
[339455835,1727620236234,-500.0,0.00010986,2]
[339455836,1727620236243,-500.0,0.00010986,2]
[339455837,1727620236252,-500.0,0.00010986,2]
[339455838,1727620236261,-500.0,0.00010986,2]
[339455839,1727620236271,-500.0,0.00010986,2]
[339455840,1727620236281,-500.0,0.00010986,2]
[339455841,1727620236290,-500.0,0.00010986,2]
[339455842,1727620236300,-500.0,0.00010986,2]
[339455843,1727620236310,-500.0,0.00010986,2]
[339455844,1727620236319,-500.0,0.00010986,2]
[339455845,1727620236329,-500.0,0.00010986,2]
[339455846,1727620236338,-621.69,0.00010986,2]
[339455847,1727620236347,-362.29083577,0.00010986,2]
[339455848,1727620236357,-1152.49,0.00010986,2]
[339455849,1727620236366,-500.0,0.00010986,2]
[339455850,1727620236375,-530.0,0.00010986,2]
[339455851,1727620236384,-500.0,0.00010986,2]
[339455852,1727620236393,-500.0,0.00010986,2]
[339455853,1727620236402,-500.0,0.00010986,2]
[339455854,1727620236411,-500.0,0.00010986,2]
[339455855,1727620236421,-500.0,0.00010986,2]
[339455856,1727620236431,-500.0,0.00010986,2]
[339455857,1727620236440,-500.0,0.00010986,2]
[339455858,1727620236450,-500.0,0.00010986,2]
[339455859,1727620236461,-500.0,0.00010986,2]
[339455860,1727620236470,-500.0,0.00010986,2]
[339455861,1727620236479,-548.51,0.00010986,2]
[339455862,1727620236489,-500.0,0.00010986,2]
[339455863,1727620236498,-500.0,0.00010986,2]
[339455864,1727620236508,-500.0,0.00010986,2]
[339455865,1727620236519,-656.59,0.00010986,2]
[339455866,1727620236528,-647.9,0.00010986,2]
[339455867,1727620236537,-500.0,0.00010986,2]
[339455868,1727620236547,-500.0,0.00010986,2]
[339455869,1727620236557,-500.0,0.00010986,2]
[339455870,1727620236567,-577.67,0.00010986,2]
[339455871,1727620236577,-166.35478514,0.00010986,2]
[339455872,1727620236587,-500.0,0.00010986,2]
[339455873,1727620236597,-500.0,0.00010986,2]
[339455874,1727620236607,-500.0,0.00010986,2]
[339455875,1727620236616,-2077.99,0.00010986,2]
[339455876,1727620236626,-500.0,0.00010986,2]
[339455877,1727620236635,-881.17,0.00010986,2]
[339455878,1727620236646,-500.0,0.00010986,2]
[339455879,1727620236656,-500.0,0.00010986,2]
[339455880,1727620236666,-500.0,0.00010986,2]
[339455881,1727620236676,-500.0,0.00010986,2]